[Event "14th BPB Limburg Open 2022"]
[Site "Maastricht"]
[Date "2022.06.06"]
[Round "6.5"]
[White "Fischer, Daniel"]
[Black "Gurevich, Mikhail"]
[Result "1/2-1/2"]
[ECO "C13"]
[WhiteElo "2367"]
[BlackElo "2573"]
[Annotator "TA"]
[PlyCount "71"]
[EventDate "2022.06.03"]
[EventType "swiss"]
[EventCountry "NED"]
[SourceTitle "playchess.com"]
[Source "ChessBase"]
[SourceQuality "1"]
[TimeControl "7200+15"]

{[%evp 15,71,5,33,16,15,0,10,11,21,14,0,-29,-30,-35,0,0,0,0,45,35,72,56,83,80,107,0,0,0,0,0,127,29,108,108,104,105,134,133,124,114,151,0,0,0,0,0,0,0,0,0,0,0,0,0,0,0,22,0]} 1. e4 {[%emt 0:00:03]} e6 {[%emt 0:15:34]} 2. d4 {[%emt 0:00:06]} d5 {[%emt 0:00:04]} 3. Nc3 {[%emt 0:00:03]} Nf6 {[%emt 0:00:05]} 4. Bg5 {[%emt 0:00:21]} dxe4 {[%emt 0:00:11]} 5. Nxe4 {[%emt 2:00:57]} Be7 {[%emt 1:45:36]} 6. Nxf6+ {[%emt 0:00:00]} Bxf6 {[%emt 0:00:00]} 7. Bxf6 {[%emt 0:00:00]} Qxf6 {[%emt 0:00:00]} 8. Nf3 {[%emt 0:00:00]} c5 {[%emt 0:00:00]} 9. Bb5+ $1 {[%emt 0:00:00][%mdl 4] outshines the older 9.c3. C13: French: Classical System: 4 Bg5 Be7, Alekhine-Chatard Attack.} Bd7 {[%emt 0:00:00]} 10. Qe2 {[%emt 0:00:00]} O-O {[%emt 0:00:00]} 11. O-O-O {[%emt 0:00:00]} a6 {[%emt 0:00:00]} 12. Bxd7 {[%emt 0:00:00]} Nxd7 {[%emt 0:00:00]} 13. d5 {[%emt 0:00:00]} exd5 {[%emt 0:00:00]} 14. Rxd5 {[%emt 0:00:00]} Rfe8 {[%emt 0:00:00] [#]} (14... Qc6 $5 {[%cal Rc6d5]} 15. Rhd1 Rfe8 $11) 15. Qd2 $146 {[%emt 0:00:00]} ({Predecessor:} 15. Qd3 Nb6 16. Rd6 Re6 17. Rxe6 Qxe6 18. Ng5 Qg6 19. Qxg6 hxg6 20. Rd1 Nc4 21. b3 {1-0 (33) Naiditsch,A (2657)-Skoberne,J (2572) Bled 2016}) 15... Nb6 {[%emt 0:00:00]} 16. Rd6 {[%emt 0:00:00]} Re6 {[%emt 0:00:00]} (16... Nc4 $5 {[%cal Rf6b2]} 17. Rxf6 Nxd2 $11) 17. Rxe6 {[%emt 0:00:00]} Qxe6 {[%emt 0:00:00] [#]} 18. Rd1 $1 {[%emt 0:00:00][%cal Od2d8] Hoping for Qd8+!} h6 {[%emt 0:00:00]} 19. Qd6 {[%emt 0:00:00]} Re8 {[%emt 0:00:00]} 20. Qc7 {[%emt 0:00:00]} ({White should play} 20. Qxc5 $16 {Threatens to win with Re1.} Na4 21. Qd5) 20... Qg6 $11 {[%emt 0:00:00][%cal Og6g2]} 21. g3 {[%emt 0:00:00]} ({But not} 21. Qxc5 $2 Rc8 22. Nh4 Qe4 $19) 21... Qf6 {[%emt 0:00:00]} 22. Qxb7 {[%emt 0:00:00]} Re2 {[%emt 0:00:00]} (22... Nc4 $11) 23. Rd2 {[%emt 0:00:00]} (23. Qxa6 $16 c4 24. Nd4 Rxf2 25. Qb5) 23... Re7 {[%emt 0:00:00]} (23... Re8 $11) 24. Qb8+ $16 {[%emt 0:00:00]} Kh7 {[%emt 0:00:00]} 25. Qd8 {[%emt 0:00:00] White is more active.} Na4 {[%emt 0:00:00]} 26. Qd3+ {[%emt 0:00:00]} g6 {[%emt 0:00:00]} 27. c3 {[%emt 0:00:00]} c4 {[%emt 0:00:00]} 28. Qxc4 {[%emt 0:00:00]} (28. Qd6 $16 Re6 29. Qf4) 28... Nxb2 $1 $11 {[%emt 0:00:00] The position is equal.} 29. Kxb2 {[%emt 0:00:00]} Qxf3 $16 {[%emt 0:00:00][%mdl 4096] Endgame KQR-KQR} 30. Kc2 {[%emt 0:00:00]} Qf5+ {[%emt 0:00:00]} 31. Qd3 {[%emt 0:00:00] [#] aiming for Qxf5.} Qa5 {[%emt 0:00:00]} 32. Qd5 {[%emt 0:00:00]} Qa4+ {[%emt 0:00:00]} 33. Kb2 {[%emt 0:00:00]} Qe8 {[%emt 0:00:00]} 34. Kc2 {[%emt 0:00:00]} Qa4+ {[%emt 0:00:00]} 35. Kb2 {[%emt 0:00:00]} Qe8 {[%emt 0:00:00]} 36. Kc2 {[%emt 0:00:00] Weighted Error Value: White=0.21 (precise) /Black=0.22 (precise)} 1/2-1/2

[Event "14th BPB Limburg Open 2022"]
[Site "Maastricht"]
[Date "2022.06.06"]
[Round "6.6"]
[White "Braun, Christian"]
[Black "Pham, Khoi"]
[Result "1-0"]
[ECO "B86"]
[WhiteElo "2426"]
[BlackElo "2291"]
[Annotator "TA"]
[PlyCount "93"]
[EventDate "2022.06.03"]
[EventType "swiss"]
[EventCountry "NED"]
[SourceTitle "playchess.com"]
[Source "ChessBase"]
[SourceQuality "1"]
[TimeControl "7200+15"]

{[%evp 16,93,46,57,55,58,78,62,66,74,87,71,68,70,68,58,92,20,35,22,73,89,76,78,92,60,54,54,58,41,92,38,23,0,17,0,0,0,0,0,0,0,0,0,0,16,21,0,305,323,454,444,435,447,422,431,473,345,318,300,308,308,279,160,268,265,341,289,785,550,29958,29961,29958,29959,29959,29954,6187,11338,6087,5257]} 1. e4 {[%emt 0:13:13]} c5 {[%emt 0:02:11]} 2. Nf3 {[%emt 0:00:18]} d6 {[%emt 0:00:12]} 3. d4 {[%emt 0:00:10]} cxd4 {[%emt 0:00:05]} 4. Nxd4 {[%emt 0:00:06]} Nf6 {[%emt 0:00:06]} 5. Nc3 {[%emt 0:00:06]} a6 {[%emt 0:00:04]} 6. Bc4 {[%emt 0:00:07]} e6 {[%emt 0:01:12]} 7. Bb3 {[%emt 0:00:48]} Be7 {[%emt 0:04:21]} 8. g4 {[%emt 0:01:50][%cal Bg2g4,Bg4g5][%mdl 32]} Nc6 {[%emt 0:08:10]} 9. g5 {[%emt 0:03:18]} Nxd4 {[%emt 0:03:36] B86: Sicilian Scheveningen/Najdorf: 6 Bc4, without early ...b5.} (9... Nd7 10. h4 $11) 10. Qxd4 {[%emt 0:03:40]} e5 {[%emt 0:17:00]} 11. Qc4 {[%emt 0:13:54] White is more active.} Be6 {[%emt 0:00:48] White is slightly better.} 12. Qe2 {[%emt 0:00:16]} (12. Qb4 Nd7 $11) 12... Nd7 {[%emt 0:01:44]} 13. Bxe6 {[%emt 0:00:08]} fxe6 {[%emt 0:00:03]} 14. Qh5+ {[%emt 0:01:03]} g6 {[%emt 0:00:32]} 15. Qg4 {[%emt 0:00:05]} Nf8 {[%emt 0:13:06] [#]} 16. f4 $146 {[%emt 0:04:36]} ({Better is} 16. Be3 $16) ({Predecessor:} 16. Bd2 Qd7 17. O-O-O O-O-O 18. Be3 Kb8 19. Rd3 Qc6 20. Rhd1 Rg8 21. Kb1 Rd7 22. R1d2 {0-1 (50) Rostolis,R (1993)-Toniolo,S (1667) Salzano 2017}) 16... h6 {[%emt 0:18:02]} 17. fxe5 {[%emt 0:02:37]} hxg5 {[%emt 0:14:17]} (17... Bxg5 $11 {remains equal.} 18. Bxg5 Qxg5 19. Qxg5 hxg5) 18. Bd2 $16 {[%emt 0:02:27]} dxe5 {[%emt 0:04:22]} 19. O-O-O {[%emt 0:02:12]} Rh4 {[%emt 0:00:32]} 20. Qf3 {[%emt 0:02:02]} Qc7 {[%emt 0:01:21]} 21. Be3 {[%emt 0:06:26]} Nd7 {[%emt 0:01:12]} 22. Qg3 {[%emt 0:04:09]} Rf4 {[%emt 0:02:59]} 23. Bxf4 {[%emt 0:02:10]} ({White should play} 23. h4 $16) 23... exf4 $14 {[%emt 0:00:04]} 24. Qg4 {[%emt 0:05:08]} (24. Qh3 $5 {[%cal Rh3e6]} Qe5 25. Rhf1 $14 (25. Qh7 Nf8 $11)) 24... Qc6 {[%emt 0:03:46]} 25. Qh3 {[%emt 0:00:13]} O-O-O {[%emt 0:05:24]} 26. Qh7 {[%emt 0:01:44]} Bf6 {[%emt 0:00:11]} 27. Rd3 {[%emt 0:02:26] [#] Threatens to win with Rhd1.} Rf8 {[%emt 0:02:06]} (27... Ne5 28. Rxd8+ Bxd8 29. Qh8 $16) 28. Rhd1 $36 {[%emt 0:02:02][%mdl 2048] White is more active.} (28. Qxg6 $2 Ne5 29. Qh6 Nxd3+ 30. cxd3 Qc5 $19) 28... Ne5 {[%emt 0:00:49]} (28... Nc5 $5 {[%cal Rc5d3]} 29. Rd6 Qc7 30. Qxc7+ (30. Qxg6 f3 $17) 30... Kxc7 $11) 29. Rd6 {[%emt 0:00:27]} Qe8 {[%emt 0:01:41] Hoping for ...Rh8.} 30. Qh3 {[%emt 0:00:46]} ({But not} 30. Rb6 Rf7 31. Qh3 g4 $17) 30... g4 $1 {[%emt 0:01:05]} 31. Qf1 {[%emt 0:00:06]} Rf7 $2 {[%emt 0:07:35][%mdl 8192] White now steadily converts the win.} (31... f3 $11 {and Black stays safe.}) 32. Qxf4 $18 {[%emt 0:03:18]} Nc4 {[%emt 0:03:15]} (32... Kb8 $142 33. Kb1 g5) 33. e5 {[%emt 0:01:52]} Nxd6 {[%emt 0:00:33]} 34. exf6 {[%emt 0:01:23]} Nf5 {[%emt 0:00:02]} 35. Ne4 {[%emt 0:00:51]} Rd7 {[%emt 0:01:45]} 36. Nd6+ {[%emt 0:08:08]} Nxd6 {[%emt 0:00:01]} 37. Rxd6 {[%emt 0:00:09]} Rxd6 {[%emt 0:00:43]} 38. Qxd6 {[%emt 0:00:05][%mdl 4096] Endgame KQ-KQ} Qf7 {[%emt 0:00:20] [#]} 39. Qd4 {[%emt 0:01:09]} ({White has to play} 39. Qe5 $1 $18) 39... Kc7 {[%emt 0:00:54]} (39... e5 $16 {was called for.} 40. Qxe5 (40. Qxg4+ Kc7 $14) 40... Kd7) 40. a4 {[%emt 0:00:16][%cal Ba2a4,Ba4a5][%mdl 32]} Kc8 {[%emt 0:04:06]} 41. a5 {[%emt 0:34:46]} Kc7 $2 {[%emt 0:00:00]} (41... e5 42. Qxe5 Kd7) 42. Kd2 {[%emt 0:00:00] And now Kd3 would win.} Qd7 {[%emt 0:00:00]} 43. Qxd7+ {[%emt 0:00:00]} Kxd7 {[%emt 0:00:00]} 44. Ke3 {[%emt 0:00:00]} e5 {[%emt 0:00:31]} 45. Ke4 {[%emt 0:00:00]} Ke6 {[%emt 0:00:01]} 46. f7 {[%emt 0:00:00]} Kxf7 {[%emt 0:00:01]} 47. Kxe5 {[%emt 0:00:00] Weighted Error Value: White=0.16 (very precise) /Black=0.57} 1-0

[Event "14th BPB Limburg Open 2022"]
[Site "Maastricht"]
[Date "2022.06.06"]
[Round "6.7"]
[White "Van Roon, Sjoerd"]
[Black "Lahaye, Rick"]
[Result "0-1"]
[ECO "B51"]
[WhiteElo "2264"]
[BlackElo "2410"]
[Annotator "TA"]
[PlyCount "176"]
[EventDate "2022.06.03"]
[EventType "swiss"]
[EventCountry "NED"]
[SourceTitle "playchess.com"]
[Source "ChessBase"]
[SourceQuality "1"]
[TimeControl "7200+15"]

{[%evp 12,176,16,6,25,33,30,23,42,16,53,58,52,48,47,47,136,44,96,0,0,1,37,36,38,-14,-38,-82,-14,-96,-53,-40,-32,-117,-24,-75,-8,-17,-8,-8,-10,-30,-20,-12,-11,-13,44,45,45,37,60,53,66,42,26,0,0,0,0,0,29,13,9,10,10,8,16,0,0,-5,-5,-5,-5,-5,-8,-8,-10,-507,-314,-861,-886,-700,-669,-667,-430,-669,-669,-1109,-1114,-1115,-1130,-1204,-1087,-1505,-1408,-1536,-1068,-1249,-1216,-2218,-2939,-2194,-2274,-1594,-682,-29988,-29983,-29996,-9092,-4594,-3245,-29946,-29956,-29938,-9768,-29948,-2676,-29971,-29972,-29971,-233,-29971,-29972,-9618,-398,-745,-737,-29980,-29971,-29967,-2380,-29938,-29942,-3611,-1051,-635,-635,-29957,-29959,-29963,-29965,-29964,-29967,-29965,0,-29959,-29959,-29953,-29959,-29966,-29969,-29964,-29965,-29964,-29966,-12835,-29960,-12797,-1487,-29973,-29974,-29972,-29972,-29986,-29987,-29987,-29988]} 1. e4 {[%emt 0:00:03]} c5 {[%emt 0:00:28]} 2. Nf3 {[%emt 0:00:08]} d6 {[%emt 0:00:16]} 3. Bb5+ {[%emt 0:00:08]} Nd7 {[%emt 0:00:04]} 4. d4 {[%emt 0:00:17]} cxd4 {[%emt 0:00:16]} 5. Qxd4 {[%emt 0:00:04]} a6 {[%emt 0:00:28]} 6. Bxd7+ {[%emt 0:00:17]} Bxd7 {[%emt 0:00:49]} 7. Nc3 {[%emt 0:00:08]} Bc6 {[%emt 0:01:02] B51: Sicilian: Moscow Variation (3 Bb5+) without 3...Bd7.} 8. Bg5 {[%emt 0:00:54][%cal Bc1g5,Bg5h4,Bh4g3][%mdl 32]} h6 {[%emt 0:01:05]} 9. Bh4 {[%emt 0:00:28]} e5 {[%emt 0:01:17] White has an edge.} 10. Qd3 {[%emt 0:03:34]} g5 {[%emt 0:01:02]} 11. Bg3 {[%emt 0:00:04]} Nf6 {[%emt 0:00:17] [#]} 12. Nd2 $146 {[%emt 0:09:14]} ({Predecessor:} 12. h4 g4 13. Nd2 b5 14. a3 Qb6 15. h5 Qd4 16. Qe2 Rg8 17. O-O-O Qb6 18. Nb3 {0-1 (36) Cunha,L (2328)-Sarana,A (2675) Chess.com INT 2022}) 12... b5 {[%emt 0:02:16]} 13. h4 {[%emt 0:00:11]} b4 {[%emt 0:04:16]} (13... g4 $14) 14. Nd5 {[%emt 0:18:55]} (14. hxg5 $1 $16 bxc3 15. Qxc3) 14... Bb5 {[%emt 0:02:48]} (14... Nxd5 $14 15. exd5 Bb5) 15. Qb3 {[%emt 0:04:04]} (15. Nxf6+ $16 Qxf6 16. Qb3) 15... Nxd5 $11 {[%emt 0:00:19]} 16. exd5 {[%emt 0:00:19]} f5 {[%emt 0:01:55]} 17. Qxb4 {[%emt 0:05:15]} f4 {[%emt 0:00:08]} 18. a4 {[%emt 0:01:45]} (18. Bh2 $14) 18... Bd7 {[%emt 0:01:31][%mdl 1024] Black has compensation.} 19. Qe4 {[%emt 0:00:42]} Kf7 {[%emt 0:01:41] Prevents Qg6+.} (19... Rg8 $17 20. Bh2 gxh4) 20. h5 {[%emt 0:02:18]} Qf6 {[%emt 0:02:32]} 21. Bh2 {[%emt 0:00:22]} Bf5 {[%emt 0:00:56]} 22. Qb4 {[%emt 0:01:31]} (22. Qe2 $1 $15) 22... e4 {[%emt 0:01:52]} (22... a5 $17 23. Qc3 Rc8 24. Qxa5 Rxc2) 23. g3 {[%emt 0:07:50]} (23. Nxe4 $2 Bxe4 24. O-O (24. Qxe4 $2 Re8 $19) 24... Bxc2 $19) (23. O-O $11) 23... a5 {[%emt 0:20:14]} (23... Be7 $17 {...Rab8 is the strong threat.} 24. gxf4 Rhb8) 24. Qc3 {[%emt 0:06:02]} (24. Qb7+ Be7 25. Qb5 (25. gxf4 $2 Rhb8 $19) 25... Rhc8 $19) 24... Qxc3 {[%emt 0:22:30]} 25. bxc3 {[%emt 0:00:05]} Bg7 {[%emt 0:00:32]} 26. gxf4 {[%emt 0:02:50]} Bxc3 {[%emt 0:01:10]} 27. Rb1 {[%emt 0:01:39]} Bb4 {[%emt 0:17:05] A strong pair of Bishops.} 28. c3 {[%emt 0:13:31]} Bc5 {[%emt 0:16:14]} ({Black should play} 28... e3 $11 29. fxe3 Bxb1 30. Nxb1 Bc5) 29. fxg5 {[%emt 0:03:22]} hxg5 {[%emt 0:01:52]} 30. Rb7+ {[%emt 0:00:08]} Kf6 {[%emt 0:01:32]} 31. Nc4 {[%emt 0:00:33]} Rhb8 {[%emt 0:00:35]} (31... Bc8 $2 32. Rc7 Bg4 33. Be5+ $1 {[%mdl 512]} (33. Nxd6 Bxd6 34. Bxd6 Rab8 $18) 33... dxe5 34. Rxc5 $18) 32. Rxb8 {[%emt 0:01:37]} Rxb8 {[%emt 0:00:06]} 33. Ke2 {[%emt 0:07:47]} ({Don't blunder} 33. Bxd6 $2 Bxd6 34. O-O Bf4 $19) 33... Bg4+ {[%emt 0:03:11]} 34. Kd2 {[%emt 0:00:04]} Bf3 {[%emt 0:00:41]} 35. Rf1 {[%emt 0:00:15]} Ke7 {[%emt 0:01:33]} 36. h6 {[%emt 0:00:08]} Rh8 {[%emt 0:01:39]} 37. Nxa5 {[%emt 0:00:50]} Rxh6 {[%emt 0:00:49]} 38. Bg3 {[%emt 0:00:04]} Bg2 {[%emt 0:02:08]} 39. Re1 {[%emt 0:06:21]} e3+ {[%emt 0:00:59][%mdl 64] Discovered Attack} 40. fxe3 {[%emt 0:00:05]} Rh3 {[%emt 0:00:42]} 41. Nc6+ {[%emt 0:06:02]} Kf6 {[%emt 0:03:04]} 42. Bf2 {[%emt 0:00:32] Hoping for c4.} Bxd5 {[%emt 0:01:21]} 43. Nd4 {[%emt 0:00:51]} Rh2 {[%emt 0:01:18]} 44. Rf1 {[%emt 0:00:19][%mdl 8192] White is on the road to losing.} (44. Ke2 $11 {and White has nothing to worry.}) 44... Bc4 {[%emt 0:00:38]} 45. Ne2 $2 {[%emt 0:00:08]} (45. Nf3 Rh3 46. Nxg5 Kxg5 47. Rg1+ Kf6 48. Rg4) 45... Kg6 $19 {[%emt 0:01:27]} 46. Ke1 {[%emt 0:00:33] [#]} Bxe3 $3 {[%emt 0:01:08][%mdl 512]} 47. a5 {[%emt 0:01:51]} Ba6 {[%emt 0:00:01]} 48. Ng3 {[%emt 0:01:45]} (48. Nd4 $142 Bxd4 49. cxd4 Bxf1 50. Kxf1) 48... Bxf1 {[%emt 0:00:31]} 49. Bxe3 {[%emt 0:00:08][%mdl 4096] Endgame KRB-KBN} Bd3 {[%emt 0:00:51]} 50. Bf2 {[%emt 0:03:39]} g4 {[%emt 0:00:19]} 51. Bb6 {[%emt 0:08:19]} d5 {[%emt 0:00:21]} 52. Bd4 {[%emt 0:00:34]} Ra2 {[%emt 0:00:09] And now ...Kg5 would win.} 53. Bb6 {[%emt 0:00:04]} Bc4 {[%emt 0:00:07]} 54. Bd4 {[%emt 0:00:13]} Kg5 {[%emt 0:00:21]} 55. Be3+ {[%emt 0:00:02]} Kh4 {[%emt 0:00:35]} 56. Bf4 {[%emt 0:00:14]} Kh3 {[%emt 0:00:12]} 57. Bc7 {[%emt 0:00:32]} Kg2 {[%emt 0:00:32]} 58. Nh5 {[%emt 0:00:21]} Kf3 {[%emt 0:00:13]} 59. Ng3 {[%emt 0:00:38]} Ke3 {[%emt 0:00:24]} (59... Ra1+ $142 60. Kd2 Bb3 61. c4 d4 62. Nh5 Rd1#) 60. Bb6+ {[%emt 0:00:29]} Kd3 {[%emt 0:00:06]} 61. Bd4 {[%emt 0:00:03]} Rxa5 {[%emt 0:00:07]} 62. Kf2 {[%emt 0:00:11]} Ra2+ {[%emt 0:00:03]} 63. Kg1 {[%emt 0:00:01]} Rc2 {[%emt 0:00:12]} (63... Bb3 $142 64. Kf1 Bd1 65. Ke1 Bf3 66. Bg7 Rc2 67. Bh8 Rxc3 68. Bg7 d4 69. Bh6 Rc2 70. Bf4 Kc3 71. Be5 Kc4 72. Bf4 Rg2 73. Bd6 d3 74. Nf1 Re2+ 75. Kd1 Ra2+ 76. Ke1 Ra1+ 77. Kd2 Rxf1 78. Bg3 Rg1 79. Bh4 Rg2+ 80. Ke3 d2 81. Kf4 d1=Q 82. Kg5 Rh2 83. Kg6 Rxh4 84. Kg5 Rh8 85. Kf5 Qd6 86. Kg5 g3 87. Kf5 Rh5#) 64. Nf5 {[%emt 0:00:46]} Ke4 {[%emt 0:00:34]} 65. Ne3 {[%emt 0:00:01]} Rc1+ $2 {[%emt 0:00:26]} (65... Ra2 {mates} 66. Nxg4 Kf3 67. Nh2+ Kg3 68. Nf1+ Kf4 69. Nh2 Rc2 70. Bh8 Bd3 71. Bd4 Be4 72. Ba7 Rxc3 73. Bb8+ Ke3 74. Ng4+ Kf3 75. Nh6 d4 76. Nf7 Ke3 77. Ng5 Rc8 78. Nxe4 Rxb8 79. Nd6 d3 80. Kf1 Rb1+ 81. Kg2 d2 82. Nc4+ Kf4 83. Nxd2 Rb2 84. Kf2 Rxd2+ 85. Ke1 Ke3 86. Kf1 Kf3 87. Kg1 Rd1+ 88. Kh2 Rb1 89. Kh3 Rh1#) 66. Kg2 $2 {[%emt 0:00:10]} (66. Kf2 $19) 66... Kf4 {[%emt 0:00:12]} 67. Bg7 {[%emt 0:00:22]} Kg5 $2 {[%emt 0:00:24]} (67... g3 {( -> ...Bf1+)} 68. Bh6+ Ke4 69. Nxc4 Rc2+ 70. Nd2+ Kd3 71. Kxg3 Rxd2) 68. Kf2 $2 {[%emt 0:00:58] Inhibits Bf1.} (68. Bd4) 68... Rh1 {[%emt 0:00:15] Threatens to win with ...Rh2+.} 69. Kg2 {[%emt 0:00:17] Inhibits Rh2+.} Rh3 {[%emt 0:00:08]} 70. Nd1 {[%emt 0:00:52]} Bd3 {[%emt 0:00:10]} (70... Kf4 $142 71. Bf8 Be2 72. Bd6+ Kf5 73. Nf2 Rxc3 74. Kh2 d4 75. Bb4 Rc2 76. Kg3 {[#]} Rc3+ $1 {[%mdl 512]} 77. Kh4 g3 78. Nh3 g2 $1 79. Ng1 Rb3 80. Be7 d3 81. Bg5 Rb4+ 82. Kg3 Kxg5 83. Nh3+ Kf5 84. Kxg2 d2 85. Nf2 Rf4 86. Kh2 Rxf2+ 87. Kg1 Bf3 88. Kxf2 Kf4 89. Kf1 Kg3 90. Kg1 d1=Q#) 71. Be5 {[%emt 0:00:42]} Kf5 {[%emt 0:00:11]} 72. Bg3 {[%emt 0:00:14]} Be4+ {[%emt 0:00:07]} (72... Be2 $142 73. Ne3+ Ke4) 73. Kf2 {[%emt 0:00:01]} Bf3 {[%emt 0:00:08]} 74. Ne3+ {[%emt 0:00:15]} Ke4 {[%emt 0:00:02][%cal Oh3g3]} 75. Nf1 {[%emt 0:00:02]} Kd3 {[%emt 0:00:14]} 76. Be5 {[%emt 0:00:01]} Be4 {[%emt 0:00:33]} 77. Nh2 {[%emt 0:01:00]} Bf3 {[%emt 0:00:14]} 78. Nf1 {[%emt 0:00:04]} Be2 {[%emt 0:00:27]} 79. Ng3 {[%emt 0:01:27]} Bd1 {[%emt 0:00:07]} 80. Kg2 {[%emt 0:00:18]} Bf3+ {[%emt 0:00:13]} 81. Kg1 {[%emt 0:00:17]} Rh7 {[%emt 0:00:31]} 82. Bd4 {[%emt 0:00:25]} Rb7 {[%emt 0:00:21]} 83. Nh5 {[%emt 0:00:26]} Rb2 {[%emt 0:00:09]} 84. Kf1 {[%emt 0:00:02]} Rc2 {[%emt 0:00:29]} (84... Rh2 $142 85. Ng3 Rg2) 85. Nf4+ {[%emt 0:00:32]} Kc4 {[%emt 0:00:14] Black mates.} 86. Ng6 {[%emt 0:01:12]} Rxc3 {[%emt 0:00:22]} 87. Bxc3 {[%emt 0:00:00]} Kxc3 {[%emt 0:00:01]} 88. Kf2 {[%emt 0:00:00]} d4 {[%emt 0:00:03] Weighted Error Value: White=0.73/Black=0.36} 0-1

[Event "14th BPB Limburg Open 2022"]
[Site "Maastricht"]
[Date "2022.06.06"]
[Round "6.9"]
[White "Van Cappellen, Jonas"]
[Black "Suvorov, Alexander"]
[Result "1/2-1/2"]
[ECO "C88"]
[WhiteElo "2208"]
[BlackElo "2365"]
[Annotator "TA"]
[PlyCount "121"]
[EventDate "2022.06.03"]
[EventType "swiss"]
[EventCountry "NED"]
[SourceTitle "playchess.com"]
[Source "ChessBase"]
[SourceQuality "1"]
[TimeControl "7200+15"]

{[%evp 18,121,21,25,24,0,0,0,0,0,0,0,0,-7,0,0,0,0,0,0,31,13,15,0,0,0,0,0,29,14,62,67,62,60,58,64,51,21,74,63,70,62,62,0,56,43,58,13,27,20,20,1,11,0,33,5,33,13,22,29,18,7,13,5,34,34,31,0,0,0,0,0,0,0,0,0,0,0,0,0,0,0,0,0,0,0,0,0,0,0,0,0,0,0,0,0,0,0,0,0,0,0,0,0,0,0]} 1. e4 {[%emt 0:00:03]} e5 {[%emt 0:00:30]} 2. Nf3 {[%emt 0:00:07]} Nc6 {[%emt 0:00:04]} 3. Bb5 {[%emt 0:00:07]} a6 {[%emt 0:00:05]} 4. Ba4 {[%emt 0:00:06]} Nf6 {[%emt 0:00:08]} 5. O-O {[%emt 0:00:08]} Be7 {[%emt 0:00:09]} 6. Re1 {[%emt 0:00:31]} b5 {[%emt 0:00:10]} 7. Bb3 {[%emt 0:00:07]} O-O {[%emt 0:00:10]} 8. a4 {[%emt 0:00:07]} Bb7 {[%emt 0:01:06]} 9. d3 {[%emt 0:00:09]} d6 {[%emt 0:02:08]} 10. Nbd2 {[%emt 0:00:39][%cal Bb1d2,Bd2f1,Bf1e3,Be3f5,Bf5h6,Bh6g4][%mdl 32]} Nd7 $1 {[%emt 0:02:40][%mdl 4] is recently more successful than 10...Na5. C88: Closed Ruy Lopez: Anti-Marshall Systems.} 11. Nf1 {[%emt 0:00:21]} Nc5 {[%emt 0:02:50]} 12. axb5 {[%emt 0:00:24]} axb5 {[%emt 0:00:26]} 13. Rxa8 {[%emt 0:00:08]} Qxa8 {[%emt 0:01:27]} 14. Bd5 {[%emt 0:00:09]} Nd8 {[%emt 0:02:19]} 15. Bxb7 {[%emt 0:00:11]} Qxb7 {[%emt 0:00:12]} 16. Ne3 {[%emt 0:00:29]} Nde6 {[%emt 0:03:34]} 17. Nf5 {[%emt 0:01:07]} Bf6 {[%emt 0:03:44]} 18. h4 {[%emt 0:00:10] [#]} g6 $146 {[%emt 0:44:33]} ({Predecessor:} 18... b4 19. b3 g6 20. Nh6+ Kh8 21. Ng5 c6 22. Qf3 Qe7 23. Be3 Bxg5 24. hxg5 Nd4 25. Bxd4 exd4 {0-1 (74) Blohberger,F (2504)-Svane,R (2637) Terme Catez 2022}) 19. Nh6+ {[%emt 0:02:10]} Kh8 {[%emt 0:02:46]} 20. Ng5 {[%emt 0:12:46]} Nxg5 {[%emt 0:03:22]} 21. hxg5 {[%emt 0:01:13]} Bg7 {[%emt 0:01:02]} 22. Ng4 {[%emt 0:21:07]} Nd7 {[%emt 0:08:35]} 23. Be3 {[%emt 0:02:46]} f5 {[%emt 0:06:32]} (23... b4 $11 {feels stronger.}) 24. gxf6 $1 $14 {[%emt 0:00:42]} Nxf6 {[%emt 0:00:32]} 25. Nxf6 {[%emt 0:01:41]} Bxf6 {[%emt 0:00:20]} 26. Qg4 {[%emt 0:01:12]} Qc6 {[%emt 0:04:20] Prevents Qd7.} 27. Qe6 {[%emt 0:04:45]} (27. c3 {keeps more tension.} Kg7 28. Ra1 h5 29. Qe6) 27... Bg7 {[%emt 0:05:58]} (27... Qxc2 $11 28. Rc1 Qxd3) 28. c3 {[%emt 0:06:54]} Re8 {[%emt 0:01:09]} 29. Qb3 {[%emt 0:03:04] White is more active.} Ra8 {[%emt 0:01:10] Prevents Ra1.} 30. Qe6 {[%emt 0:10:09]} Re8 $1 {[%emt 0:01:34]} 31. Qg4 {[%emt 0:03:28]} Ra8 {[%emt 0:00:45]} 32. g3 {[%emt 0:00:59]} Qe8 {[%emt 0:00:32]} 33. Kg2 {[%emt 0:00:55]} Kg8 {[%emt 0:01:35]} 34. Rh1 {[%emt 0:06:16]} Qf7 {[%emt 0:00:58]} 35. Qh3 {[%emt 0:02:36]} Bh8 {[%emt 0:00:36]} 36. Rf1 {[%emt 0:05:34]} (36. Bh6 $5 {[%cal Rh1a1]}) 36... Qe7 {[%emt 0:07:36]} 37. Qh1 {[%emt 0:05:13]} c6 {[%emt 0:03:01]} 38. Ra1 {[%emt 0:00:18]} Qb7 {[%emt 0:01:09]} 39. Qd1 {[%emt 0:01:55] With the idea Rxa8+.} Rxa1 {[%emt 0:02:17]} 40. Qxa1 $11 {[%emt 0:00:06][%mdl 4096] Endgame KQB-KQB} Bf6 {[%emt 0:00:42]} 41. Qa2+ {[%emt 0:01:59]} d5 {[%emt 0:00:06]} 42. Qb3 {[%emt 0:05:50]} (42. Bh6 $5 {[%cal Rc3c4]}) 42... Qd7 {[%emt 0:02:27] The position is equal.} 43. Bc5 {[%emt 0:05:59]} h5 {[%emt 0:00:40]} 44. Qa2 {[%emt 0:02:39]} Kh7 {[%emt 0:01:10]} 45. Qa8 {[%emt 0:02:22]} Bg7 {[%emt 0:00:14]} 46. Qa7 {[%emt 0:00:59]} Qxa7 {[%emt 0:00:39]} 47. Bxa7 {[%emt 0:00:03]} dxe4 {[%emt 0:00:47]} 48. dxe4 {[%emt 0:00:05] KB-KB} g5 {[%emt 0:00:54]} 49. b3 {[%emt 0:00:43]} Kg6 {[%emt 0:00:13]} 50. c4 {[%emt 0:00:22]} bxc4 {[%emt 0:00:18]} 51. bxc4 {[%emt 0:00:02]} Bf8 {[%emt 0:00:26]} 52. Bb6 {[%emt 0:00:33]} Bb4 {[%emt 0:00:26]} 53. Bd8 {[%emt 0:00:30]} Bc5 {[%emt 0:00:16]} 54. f3 {[%emt 0:00:35]} Bf8 {[%emt 0:00:13]} 55. Kh3 {[%emt 0:00:20]} Bg7 {[%emt 0:00:11]} 56. Be7 {[%emt 0:01:07]} Bf6 {[%emt 0:00:07]} 57. Bd6 {[%emt 0:00:11]} Kf7 {[%emt 0:00:09]} 58. Bc5 {[%emt 0:00:12]} Ke6 {[%emt 0:00:16]} 59. Bb4 {[%emt 0:00:23]} Be7 {[%emt 0:00:13]} 60. Bd2 {[%emt 0:00:07]} Bf6 {[%emt 0:00:27]} 61. Bb4 {[%emt 0:00:05] Weighted Error Value: White=0.08 (flawless) /Black=0.07 (flawless)} 1/2-1/2